Cogmind - Beta 16.1 @@@ ROGUE MODE // 2026.02.26 @ 19:16:19 Player: Sen Result: Destroyed self with Rocket Launcher Performance ------------- Evolutions (0) 0 Regions Visited (3) 600 Robots Destroyed (19) 95 Value Destroyed (631) 631 Prototype IDs (2) 40 Alien Tech Used (0) 0 Bonus (0) 0 TOTAL SCORE: 1366 Bonus ------- None Cogmind --------- Core Integrity 0/250 Matter 191/300 Energy 125/125 System Corruption 0% Temperature Cool (0) Movement Treading (160) Location -10/Subcaves Parts ------- > --- POWER (1) -------- Light Ion Engine > --- PROPULSION (2) --- Light Treads Spiked Treads > --- UTILITY (2) ------ Large Storage Unit Improved Terrain Scanner > --- WEAPON (2) ------- Rocket Launcher > --- INVENTORY (15) --- Subdweller Power Source Light Treads Aluminum Leg Cargo Legs Subdweller Optics Power Shielding Light Armor Plating Medium Laser Beam Rifle Subdweller Laser Scrap Shield Fragment (49) Scrap Shield Fragment (35) Scrap Shield Fragment (28) Peak State ------------ > --- POWER ------------ Light Ion Engine > --- PROPULSION ------- Light Treads Spiked Treads > --- UTILITY ---------- Large Storage Unit Improved Terrain Scanner > --- WEAPON ----------- Rocket Launcher > --- INVENTORY -------- Light Treads Aluminum Leg Cargo Legs Subdweller Optics Power Shielding Light Armor Plating Medium Laser Beam Rifle Subdweller Laser Scrap Shield Fragment Scrap Shield Fragment Scrap Shield Fragment [Rating: 13] Favorites ----------- Power Ion Engine Engine Ion Engine Propulsion Light Treads Treads Light Treads Leg Aluminum Leg Utility Large Storage Unit Device Seismic Detector Storage Large Storage Unit Protection Power Shielding Weapon Medium Laser Energy Gun Medium Laser Ballistic Gun Assault Rifle Launcher Rocket Launcher Special Weapon Mining Laser Build | -11 -10 -10 -10 ------- Run | Yrd Mat Min Sub Slots Evolved . | . . . . Power . | . . . . Propulsion . | . . . . Utility . | . . . . Weapon . | . . . . Parts Attached 25 | 4 6 8 7 Power 3 | 1 1 . 1 Engine 3 | 1 1 . 1 Core . | . . . . Reactor . | . . . . Propulsion 8 | 2 . 3 3 Treads 5 | . . 2 3 Leg 3 | 2 . 1 . Wheel . | . . . . Hover . | . . . . Flight . | . . . . Utility 7 | . 3 1 3 Device 2 | . 1 . 1 Storage 2 | . 2 . . Processor . | . . . . Hackware . | . . . . Protection 3 | . . 1 2 Artifact . | . . . . Weapon 7 | 1 2 4 . Energy Gun 2 | . 1 1 . Energy Cannon . | . . . . Ballistic Gun 3 | 1 1 1 . Ballistic Cannon . | . . . . Launcher 1 | . . 1 . Special Weapon 1 | . . 1 . Impact Weapon . | . . . . Slashing Weapon . | . . . . Piercing Weapon . | . . . . Special Melee Weapon . | . . . . Unidentified Prototypes . | . . . . Parts Lost 7 | . . 2 5 Power 1 | . . . 1 Propulsion 2 | . . 1 1 Utility 2 | . . 1 1 Weapon 2 | . . . 2 Highest Loss Streak 4 | . . 1 4 To Critical Strikes 1 | . . . 1 Average Backups 9 | 2 6 11 9 Power 1 | . 1 1 . Propulsion 1 | . 1 2 2 Utility 2 | . 1 3 2 Weapon 3 | 1 2 3 3 Tool/Special . | . . . . Unused Backups 8 | . . 3 5 Power 1 | . . . 1 Propulsion 2 | . . . 2 Utility 2 | . . 1 1 Weapon 3 | . . 2 1 Tool/Special . | . . . . Average Slot Usage (%) 93 | . 92 97 88 Engine 13 | . 14 14 13 Treads 15 | . . 18 27 Leg 12 | . 28 9 . Device 7 | . 8 7 8 Storage 13 | . 13 14 14 Protection 3 | . . 4 5 Energy Gun 10 | . 11 14 2 Ballistic Gun 9 | . 15 8 2 Launcher 4 | . . 4 11 Peak Build Rating 13 | 4 7 9 13 Average Rating 8 | 3 6 8 11 On Entrance 5 | . 4 7 9 Avg Prop Armor Cover (%) . | . . . . Naked Turns . | . . . . Heaviest Build 34 | 7 30 32 34 Greatest Support 40 | 20 20 40 40 Greatest Overweight (x) 2 | . 1 2 . Average Overweight (x) . | . . . . Largest Inventory Capacity 15 | 5 15 15 15 Average Capacity 14 | 5 13 15 15 Most Carried 15 | 5 8 15 14 Average Carried 9 | 3 6 11 11 Final Capacity 15 | 5 15 15 15 Final Carried 14 | 5 8 11 14 Class Distribution -------------------- 100% | Mutant Dominant Class ---------------- Mutant | -10/Materials Mutant | -10/Mines Mutant | -10/Subcaves Resources | -11 -10 -10 -10 ----------- Run | Yrd Mat Min Sub Matter Collected 755 | 146 182 182 245 Remotely . | . . . . Salvage Created 605 | . 182 265 158 Parts 35 | . 8 17 10 Haulers Intercepted . | . . . . Recyclers Shooed . | . . . . Parts Field Recycled . | . . . . Retrieved Matter . | . . . . Parts Self-Destructed . | . . . . Prevented . | . . . . Parts Restored . | . . . . Kills | -11 -10 -10 -10 ------- Run | Yrd Mat Min Sub Combat Hostiles Destroyed 18 | . 6 6 6 Guns 11 | . 6 4 1 AOE 6 | . . 1 5 Classes Destroyed 5 | . 2 2 1 Tunneler 1 | . . 1 . Swarmer 3 | . 3 . . Grunt 7 | . 3 4 . Sentry 2 | . . 2 . Subdweller 6 | . . . 6 Best Kill Streak 4 | . 3 4 2 Combat Bots Only 3 | . 3 2 2 Max Kills in Single Turn 1 | . 1 1 1 Gunslinging . | . . . . Exploded 1 | . . 1 1 Melee . | . . . . Uniques/NPCs Destroyed . | . . . . Combat | -11 -10 -10 -10 -------- Run | Yrd Mat Min Sub Hostile Shots Fired 119 | . 26 48 45 Missed 31 | . 5 17 9 Hits 88 | . 21 31 36 Projectile 88 | . 21 31 36 Critical Strikes 4 | . . 1 3 Damage Taken 1456 | . 225 412 819 Core 252 | . 68 94 90 Absorbed by Shields . | . . . . Redirected to Shielding 3 | . . 3 . Core Remaining (%) 100 | 100 . . . Volleys Fired 72 | . 16 25 31 Largest 2 | . 2 2 2 Hottest 150 | . 70 150 150 Shots Fired 127 | . 32 50 45 Gun 97 | . 32 45 20 Cannon . | . . . . Launcher 23 | . . 3 20 Special 7 | . . 2 5 Kinetic 42 | . 16 13 13 Thermal 62 | . 16 34 12 Explosive 23 | . . 3 20 Electromagnetic . | . . . . Robot Hit Streak 13 | . 13 9 7 Robot Miss Streak 4 | . 3 4 1 Penetration Max . | . . . . Secondary Targets . | . . . . Shots Hit Robots 78 | . 23 32 23 Core Hits 33 | . 11 12 10 Critical Kills . | . . . . Critical Parts Destroyed . | . . . . Critical Strikes 4 | . . 4 . Burn 4 | . . 4 . Melee Attacks . | . . . . Impact . | . . . . Slashing . | . . . . Piercing . | . . . . Sneak Attacks . | . . . . Combat Hostiles . | . . . . Follow-up Attacks . | . . . . Damage Inflicted 1849 | . 286 594 969 Guns 919 | . 286 420 213 Cannons . | . . . . Explosions 882 | . . 174 708 Melee . | . . . . Ramming . | . . . . Kinetic 434 | . 137 134 163 Thermal 533 | . 149 286 98 Explosive 882 | . . 174 708 Electromagnetic . | . . . . Impact . | . . . . Slashing . | . . . . Piercing . | . . . . Highest Corruption . | . . . . Average Corruption . | . . . . Corruption Purged . | . . . . Corruption Blocked . | . . . . Overload Shots . | . . . . Overflow Damage . | . . . . Projectiles . | . . . . Explosions . | . . . . Melee . | . . . . Knockbacks . | . . . . Impact . | . . . . Kinetic . | . . . . Secondary . | . . . . Self-Inflicted Damage 100 | . . . 100 Shots 5 | . . . 5 Rammed . | . . . . Targets Rammed . | . . . . Kicked . | . . . . Crushed . | . . . . Highest Temperature 286 | . 81 286 . Average Temperature 62 | . 25 80 . Received Heat Transfer 411 | . 69 168 174 Effects 2 | . . 2 . Energy Bleed 2 | . . 2 . Siege Activations . | . . . . Martial Activations . | . . . . Shielding Activations . | . . . . Robots Disrupted . | . . . . Combat Hostiles . | . . . . Robots Corrupted . | . . . . Combat Hostiles . | . . . . Parts Fried . | . . . . Impact Corruptions . | . . . . Robots Melted 1 | . . 1 . Combat Hostiles 1 | . . 1 . Parts Melted 3 | . 2 1 . Heat Transferred 1802 | . 444 1110 248 Parts Sabotaged . | . . . . Parts Stolen . | . . . . Parts Stripped . | . . . . Power Chain Reactions . | . . . . Alert | -11 -10 -10 -10 ------- Run | Yrd Mat Min Sub Maximum Alert Level . | . . . . Low Security (%) 100 | 100 100 100 . Level 1 . | . . . . Level 2 . | . . . . Level 3 . | . . . . Level 4 . | . . . . Level 5 . | . . . . High Security . | . . . . Max Security . | . . . . Peak Influence 85 | . 85 68 . Initial 6 | . . 6 . Average 15 | . 24 11 . Influence Increases 358 | . 188 170 . Destroy 0b10 Robot/C 240 | . 120 120 . Destroy 0b10 Robot/NC 5 | . . 5 . Destroy Leader 30 | . 20 10 . Successful Hack 18 | . 18 . . Destroy Structure 20 | . . 20 . Lose Combat Pursuer 45 | . 30 15 . Influence Decreases 358 | . 170 188 . Entered New Map 12 | . . 12 . Time Decay 346 | . 170 176 . Squads Dispatched 1 | . 1 . . Investigation . | . . . . Extermination . | . . . . Reinforcement 1 | . 1 . . Assault . | . . . . Garrison . | . . . . Intercept . | . . . . Searches Triggered . | . . . . Construction Impeded . | . . . . Haulers Reinforced . | . . . . Active Scanning Responses . | . . . . Cargo Convoy Interrupts . | . . . . Stealth | -11 -10 -10 -10 --------- Run | Yrd Mat Min Sub Distress Signals . | . . . . Communications Jammed . | . . . . Distress Signals . | . . . . Times Spotted 26 | . 10 9 7 Peak Tracking Total 4 | . 3 4 3 Tactical Retreats 3 | . 2 1 . Traps | -11 -10 -10 -10 ------- Run | Yrd Mat Min Sub Traps Triggered . | . . . . Indirectly . | . . . . Trap Hack Attempts . | . . . . Triggered . | . . . . Disarmed . | . . . . Reprogrammed . | . . . . Reused . | . . . . Traps Extracted . | . . . . Installed . | . . . . Triggered . | . . . . Machines | -11 -10 -10 -10 ---------- Run | Yrd Mat Min Sub Machines Disabled . | . . . . Max in Single Turn . | . . . . Machines Repaired . | . . . . Machines Dismantled . | . . . . Machines Sabotaged . | . . . . Overloaded Fab Kills . | . . . . Hacking | -11 -10 -10 -10 --------- Run | Yrd Mat Min Sub Machines Accessed 3 | . 3 . . Terminals 2 | . 2 . . Fabricators . | . . . . Repair Stations . | . . . . Recycling Units 1 | . 1 . . Scanalyzers . | . . . . Garrison Access . | . . . . Total Hacks 12 | . 12 . . Successful 9 | . 9 . . Failed 3 | . 3 . . Catastrophic . | . . . . Database Lockouts . | . . . . Manual 6 | . 6 . . Terminals 11 | . 11 . . Fabricators . | . . . . Repair Stations . | . . . . Recycling Units 1 | . 1 . . Scanalyzers . | . . . . Garrison Access . | . . . . Terminal Hacks 5 | . 5 . . Robot Analysis 1 | . 1 . . Prototype ID Bank 1 | . 1 . . Locate Traps 1 | . 1 . . Maintenance Status 1 | . 1 . . Zone Layout 1 | . 1 . . Fabricator Hacks . | . . . . Repair Station Hacks . | . . . . Recycling Unit Hacks 1 | . 1 . . Report Inventory 1 | . 1 . . Scanalyzer . | . . . . Garrison Access Hacks . | . . . . Unauthorized Hacks 3 | . 3 . . Terminals 3 | . 3 . . Botnet 2 | . 2 . . Operators 1 | . 1 . . Fabricators . | . . . . Repair Stations . | . . . . Recycling Units . | . . . . Scanalyzers . | . . . . Garrison Access . | . . . . Data Cores Recovered . | . . . . Used . | . . . . Hacking Detections 1 | . 1 . . Full Trace Events . | . . . . Feedback Events . | . . . . Feedback Blocked . | . . . . Robot Schematics Acquired . | . . . . Robots Built . | . . . . Authchips . | . . . . Time . | . . . . Total Robot Build Rating . | . . . . Part Schematics Acquired . | . . . . Parts Built . | . . . . Authchips . | . . . . Time . | . . . . Total Part Build Rating . | . . . . Part Studies Acquired . | . . . . Parts Repaired . | . . . . Time . | . . . . Parts Recycled . | . . . . Recycled Matter . | . . . . Retrieved Matter . | . . . . Retrieved Components . | . . . . Parts Scanalyzed . | . . . . Part Schematics Acquired . | . . . . Parts Damaged . | . . . . Bothacking | -11 -10 -10 -10 ------------ Run | Yrd Mat Min Sub Used RIF Installer . | . . . . Robots Hacked . | . . . . Non-combat . | . . . . Combat . | . . . . Robot Hacks Applied . | . . . . Relay Couplers Released . | . . . . Fabnet Peak Effective % . | . . . . Robots Rewired . | . . . . Allies Hacked . | . . . . Hacks Repelled . | . . . . Allies | -11 -10 -10 -10 -------- Run | Yrd Mat Min Sub Total Allies . | . . . . Largest Group . | . . . . Highest-Rated Group . | . . . . Highest-Rated Ally . | . . . . Total Orders . | . . . . Ally Attacks . | . . . . Total Damage . | . . . . Kills . | . . . . Allies Corrupted . | . . . . Allies Melted . | . . . . Intel | -11 -10 -10 -10 ------- Run | Yrd Mat Min Sub Active Infowar (turns) 1146 | . 343 508 295 Terrain 295 | . . . 295 Seismic 851 | . 343 508 . Robot Analysis Total 1 | . 1 . . Derelict Logs Recovered 1 | . . 1 . Drone Launches . | . . . . Drone Recoveries . | . . . . Exploration | -11 -10 -10 -10 ------------- Run | Yrd Mat Min Sub Turns Passed 2091 | 55 565 968 503 Spaces Moved 1023 | 41 270 476 236 Core 6 | 6 . . . Treads 561 | . . 325 236 Legs 456 | 35 270 151 . Wheels . | . . . . Hover . | . . . . Flight . | . . . . Fastest Speed 50 | 50 120 160 160 Average Speed 165 | 109 172 169 160 Slowest Speed 260 | 120 190 260 160 Overloaded Moves . | . . . . Propulsion Burnouts . | . . . . Robots Hopped . | . . . . Potential Cave-ins . | . . . . Cave-ins Triggered . | . . . . Exploration Rate (%) 36 | 3 40 86 17 Regions Visited 3 Branch Regions 2 Pre-discovered Areas . | . . . . Known Exits Taken . | . . . . Unknown Exits Taken 3 | 1 1 1 . Scrap Searched 3 | . . 1 2 Spaces Dug 17 | . . . 17 Terrain Destroyed 179 | . . 30 149 Melee . | . . . . Projectile 1 | . . 1 . AOE 178 | . . 29 149 Terrain Rammed . | . . . . Walls Destroyed . | . . . . Machines Disabled . | . . . . Actions | -11 -10 -10 -10 --------- Run | Yrd Mat Min Sub Total 1278 | 49 337 585 307 Wait 110 | . 42 52 16 Move 1020 | 40 269 475 236 Hop . | . . . . Pick Up 27 | 5 3 12 7 Fast Attach 8 | 4 2 2 . Attach 12 | . 2 4 6 Detach 5 | . 1 2 2 Swap 12 | . 2 4 6 Drop 11 | . . 9 2 Fire 72 | . 16 25 31 Melee . | . . . . Ram . | . . . . Kick . | . . . . Crush . | . . . . Escape Stasis . | . . . . Rewire 1 | . . . 1 Trap . | . . . . Miscellaneous . | . . . . Route ------- -11/Scrapyard -10/Materials -10/Mines (discovered 3 exits: [*Mat x2] / [*Sub]) -10/Subcaves History --------- Turn | Location | Event 5 | -11/Scrapyard | Discovered new exit (range 15) 56 | -11/Scrapyard | Entered Materials 259 | -10/Materials | Discovered new exit (range 12) 318 | -10/Materials | Build established: Mutant 621 | -10/Materials | Entered Mines 655 | -10/Mines | Met a Derelict bent on vengeance 890 | -10/Mines | Discovered new exit (range 6) 948 | -10/Mines | Core integrity fell below 50% 1122 | -10/Mines | Discovered new exit (range 7) 1126 | -10/Mines | Learned 2 Materials zone layouts 1181 | -10/Mines | Excavation squad dispatched 1181 | -10/Mines | A large section of the Mines collapsed 1266 | -10/Mines | Received a Rocket Launcher from a helpful Derelict 1328 | -10/Mines | Discovered new exit (range 8) 1589 | -10/Mines | Entered Subcaves 1604 | -10/Subcaves | Shifting Twisted Machinery released Sub. Laser 1701 | -10/Subcaves | A Subdweller sparked back to life 1701 | -10/Subcaves | A Subdweller sparked back to life 1706 | -10/Subcaves | Core integrity fell below 20% 1750 | -10/Subcaves | Found Prototype Leg 1768 | -10/Subcaves | Lost 4 parts (1p1n1u1w) 1847 | -10/Subcaves | Disturbed a concealed Subdweller 2061 | -10/Subcaves | Shifting Twisted Machinery released Sub. Monowheel 2092 | -10/Subcaves | Destroyed self with Rocket Launcher Last Messages --------------- 01869_ Found 52 Matter. 01870_ Acquired 52 matter. 01876_ Subatomizers dissect the Battle Cannon. 01876_ The unstable cave ceiling collapses. 01886_ Subatomizers dissect the Battle Cannon. 01891_ The unstable cave ceiling collapses. 01898_ Subatomizers dissect the Battle Cannon. 01903_ The unstable cave ceiling collapses. 01959_ 82-P5Q(R) destroyed. 01960_ ZF-WNI(R) affixes Scrap Shield Fragment to Scrap Shield. 01961_ ZF-WNI(R) destroyed. 01973_ Acquired 32 matter. 01974_ Subatomizers dissect the Sub. Monowheel. 01976_ Acquired Sub. Power Source. 01977_ Acquired 37 matter. 01985_ The unstable cave ceiling collapses. Sub. Monowheel falls loose from the Twisted Machinery. 02073_ The unstable cave ceiling collapses. Map ----- +----------------------------------------------------+ | ????????????????????????????????????????????????? | | ????????????????????????????????????????????????? | | ????????????????????????????????????????????????? | | ????????????????????????????????????????????????? | | ????????????????????????????????????????????????? | | ????????????????????????????????????????????????? | | ????????????????????????????????????????????????? | | ????????????????????????????????????????????????? | | ????????????????????????????????????????????????? | | ????????????????????????????????????????????????? | | ????????????????????????????????????????????????? | | ????????????????????????????????????????????????? | | ????????????????????????????????????????????????? | | ????????????????????????????????????????????????? | | ??????????????????????????#?????????????????????? | | ????????????????#???????????????????????????????? | | ???????????????## ??????????????????????????????? | | ???????????????# ?????????????????????????????? | | ???????????#???# #######??????????????????????? | | ????????????????# ##?? ??????????????????? | | ???????????????## ##????????????????????? | | ???????????????# #? ??????????????????? | | ??????????????## #?#??????????????????? | | ??????????????#"" "#????????????????????? | | ??????????????# """ #????????????????????? | | ??????????????# "" @ #?????????#??????????? | | ??????????????# """ #????????????????????? | | ????????#?????#"" ""= ##????????????????????? | | ??????????????#" ####?????????????????????? | | ??????????????#### ##??#????????????????????? | | ?????????????????## #???????????????????????? | | ?????????????????## ##??????#?#??????????????? | | ?????????????????## #???????????????????????? | | ?????????????????### #????????#??????????????? | | ??????????????????# ##????#??????#???????????? | | ???????????#???##?# #??????????????#?????????? | | ??????????????????## ###???????#???????????????? | | ????????#??????????# ##??#???????????????????? | | ???????????????#???## #??????????????????????? | | ??????????????????### #???#####?????#????????? | | ???????????##????## ##### ##????#????????? | | ????????????????## ## #????????????"? | | ????????????#???# #?????????????? | | ???????????????# ###?????????"?? | | ????????#???#?# #### ## #???????????? | | ?????????#??#?# ???##### #???????#???? | | ??????????????## ??#????# " ##???????? ?? | | ????????????#??### ???????##" ##??????????? | | ?????#????#????#?####????????##" #??????????? | | ???????????#????????#######??### ##??#???????? | +----------------------------------------------------+ Best States ------------- Heat Dissipation 25 Energy Generation 10 Energy Capacity 250 Matter Stores 300 Matter Capacity 300 Sight Range 16 Terrain Scan Range 16 Terrain Scan Density 10 Armor Coverage 150 Power Shielding 33 Evasion (%) 55 Recoil Reduction 2 Item Schematics ----------------- None Robot Schematics ------------------ None Fabricated ------------ Nothing Repaired ---------- Nothing Studied --------- None Alien Tech Used ----------------- None Achievements -------------- None Challenges ------------ None Game ------ Seed JunkTechActivator Manual? 0 Play Time 00:25:20 Cumulative 107.8 hours Start 2026.02.26 @ 15:27:08 End 2026.02.26 @ 19:16:19 Sessions 3 Manual Loads 0 Difficulty Rogue Special Mode None Game No. 96 Rogue 96 Adventurer 0 Explorer 0 Win Type - Total 0 Types 0/0/0/0/0/0/0/0/0/0 Lore% 45 Gallery% 41 Achievement% 32 Wizard Run 0 Options --------- Layout 1 ASCII 1 Keyboard 1 Movement Numpad Keybinds 0 Fullscreen 1 Font 24/Smallcaps Map View 50x35 Zoom Use 0% Tactical HUD 1 Map Filters NONE Filters NONE Steam 1 RUN: 73fd9c6e-7721-4956-b32d-3c255f7f3091